bitfinex/quotes_BTCUSD_20251117
["timestamp","ask_amount","ask_price","bid_price","bid_amount"]
[1763392073584,0.10416178,94944.0,94917.0,0.00013162]
[1763392073712,0.01949983,94943.0,94917.0,0.00013162]
[1763392073930,0.04341874,94941.0,94917.0,0.00013162]
[1763392074130,0.04341874,94939.0,94917.0,0.00013162]
[1763392074381,0.01949983,94943.0,94917.0,0.00013162]
[1763392074582,0.01949983,94958.0,94918.0,0.10416178]
[1763392074797,0.02816742,94990.0,94918.0,0.10416178]
[1763392074798,0.60106297,94990.0,94933.0,0.10416178]
[1763392075008,0.01979118,95000.0,94933.0,0.10416178]
[1763392075009,0.01545694,94971.0,94949.0,0.10416178]
[1763392075233,0.12366161,94983.0,94950.0,0.0128482]
[1763392075234,0.0128482,94982.0,94950.0,0.0128482]
[1763392075751,0.0128482,94982.0,94963.0,0.00509985]
[1763392075752,0.10416178,94968.0,94963.0,0.00509985]
[1763392075968,0.01597848,94967.0,94933.0,0.10416178]
[1763392076179,0.01597848,94967.0,94919.0,0.01042934]
[1763392076180,0.01949983,94966.0,94919.0,0.01042934]
[1763392076394,0.01949983,94965.0,94933.0,0.10416178]
[1763392076631,0.01958555,94964.0,94934.0,0.02106726]
[1763392076838,0.03908538,94963.0,94934.0,0.02106726]
[1763392077049,0.01958555,94962.0,94934.0,0.03359016]
[1763392077262,0.01958555,94961.0,94935.0,0.02106704]
[1763392077462,0.00013223,94967.0,94935.0,0.01339967]
[1763392077463,0.01958555,94960.0,94935.0,0.01339967]
[1763392077673,0.01958555,94959.0,94935.0,0.01339967]
[1763392077873,0.01958555,94958.0,94935.0,0.01339967]
[1763392078088,0.01958555,94957.0,94933.0,0.10416178]
[1763392078301,0.01958555,94956.0,94933.0,0.10416178]
[1763392078543,0.01958555,94955.0,94933.0,0.10416178]
[1763392078718,0.01958555,94954.0,94934.0,0.02106726]
[1763392078954,0.01958555,94953.0,94934.0,0.02106726]
[1763392079145,0.01958555,94952.0,94935.0,0.0125229]
[1763392079360,0.01960436,94951.0,94936.0,0.02106682]
[1763392079565,0.01960436,94950.0,94936.0,0.02106682]
[1763392079772,0.01960436,94949.0,94936.0,0.02106682]
[1763392079976,0.01960436,94948.0,94936.0,0.02106682]
[1763392080208,0.01960436,94947.0,94936.0,0.02106682]
[1763392080404,0.01960436,94946.0,94936.0,0.02106682]
[1763392080622,0.01960436,94946.0,94918.0,0.10416178]
[1763392080623,0.01960436,94945.0,94918.0,0.10416178]
[1763392080854,0.01960436,94944.0,94936.0,0.001]
[1763392081075,0.02645716,94967.0,94937.0,0.02106659]
[1763392081076,0.01960436,94943.0,94937.0,0.02106659]
[1763392081284,0.01960436,94942.0,94938.0,0.01019479]
[1763392081509,0.10416178,94967.0,94940.0,0.03521]
[1763392081718,0.13048671,94967.0,94940.0,0.03521]
[1763392081932,0.09211,94966.0,94940.0,0.03521]
[1763392082151,0.10416178,94954.0,94936.0,0.001]
[1763392082431,0.10416178,94938.0,94936.0,0.001]
[1763392082639,0.07332325,94937.0,94919.0,0.03521]
[1763392082915,0.10416178,94938.0,94936.0,0.001]
[1763392083135,0.10416178,94938.0,94903.0,0.03521]
[1763392083136,0.13552874,94937.0,94903.0,0.03521]
[1763392083355,0.60106297,94920.0,94893.0,0.03521]
[1763392083591,0.60106297,94920.0,94893.0,0.00043993]
[1763392083592,0.04341874,94918.0,94893.0,0.00043993]
[1763392084091,0.04341874,94919.0,94893.0,0.00043993]
[1763392084329,0.04341874,94916.0,94893.0,0.00043993]
[1763392084557,0.60106297,94920.0,94893.0,0.00043993]
[1763392084558,0.02816742,94937.0,94894.0,0.03521]
[1763392084777,0.11966331,94938.0,94894.0,0.03521]
[1763392084778,0.11966331,94938.0,94894.0,0.13937178]
[1763392085007,0.19627178,94954.0,94910.0,0.10416178]
[1763392085008,0.10416178,94954.0,94910.0,0.10416178]
[1763392085229,0.07515742,94968.0,94911.0,0.03521]
[1763392085458,0.07515742,94968.0,94925.0,0.10416178]
[1763392085459,0.0098365,94967.0,94925.0,0.10416178]
[1763392085676,0.01281937,94966.0,94925.0,0.10416178]
[1763392085897,0.10416178,94954.0,94925.0,0.10416178]
[1763392086113,0.02632881,94953.0,94902.0,0.03521]
[1763392086322,0.02632881,94953.0,94860.0,0.00999999]
[1763392086323,0.001,94918.0,94911.0,0.03521]
[1763392086744,0.04901357,94958.0,94941.0,0.00570797]
[1763392086953,0.01521464,94941.0,94896.0,0.03521]
[1763392087167,0.10416178,94942.0,94896.0,0.03521]
[1763392087168,0.10416178,94927.0,94896.0,0.03521]
[1763392087383,0.02105624,94926.0,94897.0,0.02909145]
[1763392087607,0.02105624,94926.0,94911.0,0.002]
[1763392087825,0.60106297,94940.0,94911.0,0.002]
[1763392087826,0.13049503,94937.0,94911.0,0.002]
[1763392088059,0.02633352,94936.0,94912.0,0.03521]
[1763392088287,0.02633352,94936.0,94911.0,0.00013223]
[1763392088288,0.10416178,94921.0,94911.0,0.00013223]
[1763392088504,0.04699,94912.0,94911.0,0.00013223]
[1763392088792,0.01705253,94919.0,94911.0,0.00013223]
[1763392089008,0.04341874,94917.0,94911.0,0.00013223]
[1763392089272,3.04341874,94915.0,94911.0,0.00013223]
[1763392089488,0.01053629,94910.0,94863.0,0.03534]
[1763392089709,0.10416178,94879.0,94863.0,0.03577993]
[1763392089927,0.02634962,94878.0,94863.0,0.03577993]
[1763392090376,0.02634962,94878.0,94863.0,0.00043993]
[1763392090597,0.01775014,94877.0,94863.0,0.00043993]
[1763392090816,0.02634962,94878.0,94863.0,0.00043993]
[1763392090817,0.95674478,94873.0,94863.0,0.00043993]
[1763392091057,0.02635129,94872.0,94863.0,0.00043993]
[1763392091478,0.01008035,94872.0,94863.0,0.00043993]
[1763392091707,0.04341874,94883.0,94863.0,0.00043993]
[1763392091708,0.95674478,94880.0,94863.0,0.00043993]
[1763392091921,0.95674478,94890.0,94863.0,0.03577993]
[1763392092138,0.02411248,94897.0,94863.0,0.00043993]
[1763392092139,0.95674478,94880.0,94863.0,0.00043993]
[1763392092363,0.02634935,94879.0,94863.0,0.00043993]
[1763392092594,0.10416178,94882.0,94854.0,0.03534]
[1763392092595,0.95674478,94870.0,94854.0,0.02177993]
[1763392092820,0.0004402,94870.0,94854.0,0.02177993]
[1763392093050,0.95718498,94870.0,94869.0,0.00770017]
[1763392093274,0.0004402,94870.0,94869.0,0.00770017]
[1763392093495,0.02006288,94870.0,94869.0,0.00770017]
[1763392093705,0.11217288,94870.0,94869.0,0.00770017]
[1763392093959,0.15559162,94870.0,94869.0,0.00770017]
[1763392094195,0.02006288,94870.0,94869.0,0.00770017]
[1763392094655,0.15559162,94870.0,94869.0,0.00770017]
[1763392094881,0.95674478,94844.0,94822.0,0.02948]
[1763392095095,0.04598203,94843.0,94822.0,0.02948]
[1763392095317,0.01962268,94842.0,94822.0,0.02948]
[1763392095534,0.09211,94862.0,94822.0,0.02948]
[1763392095535,0.01962268,94841.0,94823.0,0.13680435]
[1763392095749,0.10416178,94882.0,94838.0,0.10416178]
[1763392095964,0.95674478,94870.0,94839.0,0.03264326]
[1763392096194,0.01959006,94869.0,94839.0,0.13680504]
[1763392096409,0.01959006,94869.0,94822.0,0.02948]
[1763392096410,0.95674478,94850.0,94822.0,0.02948]
[1763392096622,0.10416178,94866.0,94822.0,0.02948]
[1763392096623,0.95674478,94832.0,94822.0,0.02948]
[1763392096851,0.09211,94858.0,94822.0,0.02961162]
[1763392097070,0.10416178,94866.0,94822.0,0.02961162]
[1763392097071,0.95674478,94850.0,94823.0,0.01317112]
[1763392097280,0.95674478,94840.0,94823.0,0.01018123]
[1763392097486,0.95674478,94840.0,94822.0,0.02961162]
[1763392097487,0.01958829,94839.0,94822.0,0.02961162]
[1763392097733,0.01958829,94838.0,94822.0,0.02961162]
[1763392097955,0.01958829,94837.0,94823.0,0.11936271]
[1763392098183,0.01958829,94836.0,94823.0,0.11936271]
[1763392098395,0.01587407,94851.0,94823.0,0.11936271]
[1763392098396,0.01958829,94835.0,94824.0,0.02511]
[1763392098609,0.01511518,94881.0,94824.0,0.02511]
[1763392098610,0.01958829,94834.0,94825.0,0.04500116]
[1763392098832,0.12550426,94879.0,94826.0,0.00316425]
[1763392099076,0.95674478,94870.0,94848.0,0.10416178]
[1763392099294,0.01956242,94869.0,94849.0,0.00316348]
[1763392099517,0.01956242,94869.0,94825.0,0.04341874]
[1763392099518,0.95674478,94860.0,94839.0,0.02511]
[1763392099723,0.95674478,94860.0,94822.0,0.03061162]
[1763392099724,0.01956242,94859.0,94825.0,0.02511]
[1763392099933,0.0263549,94859.0,94825.0,0.01311]
[1763392100145,0.95674478,94850.0,94826.0,0.00421881]
[1763392100371,0.95674478,94850.0,94822.0,0.02961162]
[1763392101212,0.95674478,94860.0,94838.0,0.10416178]
[1763392101426,0.02339324,94859.0,94839.0,0.00041381]
[1763392101699,0.10416178,94844.0,94822.0,0.02961162]
[1763392101905,0.79118374,94833.0,94822.0,0.02961162]
[1763392102145,0.0263624,94832.0,94822.0,0.00013162]
[1763392102379,0.96569835,94832.0,94822.0,0.00013162]
[1763392102599,0.04341874,94831.0,94822.0,0.00013162]
[1763392102836,0.10416178,94844.0,94822.0,0.00013162]
[1763392103072,0.00999999,94880.0,94823.0,0.001]
[1763392103073,0.95674478,94850.0,94823.0,0.001]
[1763392103285,0.01924199,94849.0,94824.0,0.00210972]
[1763392103506,0.08399,94865.0,94825.0,0.00316428]
[1763392103507,0.01567986,94858.0,94825.0,0.00316428]
[1763392103723,0.95674478,94850.0,94825.0,0.00316428]
[1763392103955,0.01836149,94849.0,94825.0,0.00316428]
[1763392104423,0.01836149,94849.0,94822.0,0.00013162]
[1763392104424,0.95674478,94840.0,94822.0,0.00013162]
[1763392104646,0.95674478,94832.0,94822.0,0.00013162]
[1763392104858,0.10416178,94829.0,94822.0,0.00013162]
[1763392105069,0.02446808,94828.0,94822.0,0.00013162]
[1763392105277,0.01666343,94827.0,94822.0,0.00013162]
[1763392105529,0.95674478,94832.0,94822.0,0.00013162]
[1763392105747,0.09063,94857.0,94822.0,0.00329636]
[1763392105748,0.95674478,94850.0,94822.0,0.00329636]
[1763392105972,0.95674478,94850.0,94849.0,0.00055543]
[1763392106191,0.01618177,94852.0,94849.0,0.00055543]
[1763392106399,0.10681177,94852.0,94822.0,0.00013162]
[1763392106615,0.95674478,94832.0,94822.0,0.00013162]
[1763392106826,0.09063,94852.0,94822.0,0.00013162]
[1763392106827,0.95674478,94840.0,94822.0,0.00013162]
[1763392107029,0.04341874,94855.0,94822.0,0.00113162]
[1763392107246,0.95674478,94840.0,94822.0,0.00013162]
[1763392107452,0.04221,94823.0,94822.0,0.00013162]
[1763392107869,0.13404874,94823.0,94822.0,0.00013162]
[1763392108098,0.15343209,94823.0,94822.0,0.00013162]
[1763392108306,0.18341248,94823.0,94822.0,0.00013162]
[1763392108518,0.15343209,94823.0,94822.0,0.00013162]
[1763392108732,0.02636491,94823.0,94822.0,0.00013162]
[1763392109177,0.10416178,94831.0,94822.0,0.00013162]
[1763392109178,0.02636296,94830.0,94822.0,0.00013162]
[1763392109620,0.01403333,94829.0,94822.0,0.00013162]
[1763392109829,0.01711133,94830.0,94822.0,0.00013162]
[1763392110047,0.04341874,94829.0,94822.0,0.00013162]
[1763392110268,0.11699296,94830.0,94770.0,0.0004]
[1763392110269,3.04341874,94815.0,94770.0,0.0004]
[1763392110519,0.14637178,94791.0,94790.0,0.00053188]
[1763392110983,0.23700178,94791.0,94790.0,0.00053188]
[1763392111224,0.28042052,94791.0,94790.0,0.00053188]
[1763392111436,0.10416178,94791.0,94790.0,0.00053188]
[1763392111646,0.04221,94800.0,94790.0,0.00053188]
[1763392111647,0.10416178,94799.0,94790.0,0.00053188]
[1763392111863,0.0195705,94798.0,94790.0,0.00053188]
[1763392112114,1.91348956,94790.0,94770.0,0.0004]
[1763392112328,0.04221,94761.0,94759.0,0.45734001]
[1763392112553,3.0295705,94760.0,94759.0,0.45734001]
[1763392112801,3.17665862,94760.0,94759.0,0.34056037]
[1763392113055,3.01,94744.0,94743.0,0.00475008]
[1763392113289,3.39598924,94744.0,94743.0,0.00475008]
[1763392113522,3.42354691,94744.0,94743.0,0.00475008]
[1763392113976,0.005503,94705.0,94691.0,0.002]
[1763392114204,0.005503,94705.0,94691.0,0.08773]
[1763392114870,0.323,94709.0,94693.0,0.10416178]
[1763392115078,0.323,94709.0,94707.0,0.04158]
[1763392115292,0.32313172,94709.0,94707.0,0.04158]
[1763392115731,0.32313172,94709.0,94691.0,0.002]
[1763392115955,0.00013172,94709.0,94692.0,0.08931765]
[1763392116180,0.00013172,94709.0,94693.0,0.01328977]
[1763392116387,0.00013172,94709.0,94694.0,0.00361768]
[1763392116595,0.00013172,94709.0,94692.0,0.08573]
[1763392116856,0.00013172,94709.0,94707.0,0.001]
[1763392117101,0.00013172,94709.0,94691.0,0.09007801]
[1763392117330,0.00013172,94709.0,94683.0,0.08573]
[1763392117556,0.00013172,94709.0,94693.0,0.001]
[1763392117969,0.00013172,94709.0,94682.0,0.04158]
[1763392117970,0.10416178,94707.0,94682.0,0.04158]
[1763392118197,0.02636257,94706.0,94682.0,0.04158]
[1763392118414,0.02636257,94706.0,94683.0,0.00464414]
[1763392118415,0.02639748,94706.0,94683.0,0.00464414]
[1763392118628,0.00013172,94709.0,94682.0,0.04158]
[1763392118844,0.00013172,94709.0,94651.0,0.002]
[1763392118845,0.04341874,94691.0,94651.0,0.002]
[1763392119063,0.04341874,94682.0,94651.0,0.04358]
[1763392119276,0.06982291,94682.0,94651.0,0.04358]
[1763392119481,0.04341874,94682.0,94651.0,0.04358]
[1763392119927,0.04341874,94682.0,94651.0,0.002]
[1763392119928,3.08929086,94682.0,94651.0,0.002]
[1763392120137,3.06288669,94682.0,94651.0,0.002]
[1763392120351,3.38586307,94682.0,94651.0,0.002]
[1763392120565,3.39586307,94682.0,94651.0,0.002]
[1763392120783,0.34244433,94682.0,94651.0,0.002]
[1763392121034,0.21225029,94682.0,94651.0,0.002]
[1763392121271,0.04341874,94673.0,94651.0,0.002]
[1763392121486,3.08924897,94673.0,94651.0,0.002]
[1763392121696,3.07284229,94673.0,94651.0,0.002]
[1763392121943,3.06284229,94673.0,94651.0,0.002]
[1763392122162,0.04341874,94673.0,94651.0,0.002]
[1763392122588,0.00013165,94673.0,94651.0,0.002]
[1763392123013,3.36655039,94673.0,94651.0,0.002]
[1763392123433,3.16222416,94673.0,94651.0,0.002]
[1763392123643,0.36741874,94673.0,94651.0,0.002]
[1763392123862,0.36641874,94673.0,94651.0,0.002]
[1763392124275,0.36641874,94673.0,94625.0,0.10416178]
[1763392124276,0.04341874,94670.0,94625.0,0.10416178]
[1763392124482,0.10416178,94652.0,94625.0,0.10416178]
[1763392124690,0.02641282,94651.0,94626.0,0.02165618]
[1763392124907,3.64746755,94650.0,94580.0,0.00550336]
[1763392125135,0.10416178,94635.0,94602.0,0.10416178]
[1763392125346,0.10416178,94635.0,94600.0,0.04158]
[1763392125347,0.04341874,94633.0,94600.0,0.04158]
[1763392125555,0.04341874,94627.0,94600.0,0.04158]
[1763392125786,0.04341874,94625.0,94600.0,0.04158]
[1763392126013,0.04341874,94625.0,94592.0,0.04158]
[1763392126014,3.04341874,94623.0,94592.0,0.04158]
[1763392126237,0.10416178,94635.0,94577.0,0.08573]
[1763392126238,0.10416178,94612.0,94577.0,0.08573]
[1763392126476,0.16552163,94612.0,94611.0,0.00244028]
[1763392126700,3.27270379,94612.0,94611.0,0.00244028]
[1763392126937,0.60404881,94621.0,94611.0,0.00244028]
[1763392127158,0.01641967,94627.0,94611.0,0.00244028]
[1763392127432,0.10416178,94617.0,94611.0,0.00244028]
[1763392127653,0.0264198,94626.0,94611.0,0.00244028]
[1763392127867,0.10416178,94622.0,94611.0,0.00244028]
[1763392128094,0.0191118,94621.0,94611.0,0.00244028]
[1763392128307,0.026417,94636.0,94611.0,0.08817028]
[1763392128532,0.01766699,94648.0,94620.0,0.04158]
[1763392128771,0.10416178,94647.0,94620.0,0.04158]
[1763392129013,0.025821,94646.0,94621.0,0.09040004]
[1763392129229,0.10416178,94666.0,94621.0,0.09040004]
[1763392129450,0.19422178,94666.0,94621.0,0.09040004]
[1763392129680,0.19422178,94666.0,94621.0,0.08573]
[1763392129681,0.10416178,94645.0,94621.0,0.08573]
[1763392130142,0.10416178,94645.0,94620.0,0.04158]
[1763392130378,0.10416178,94645.0,94620.0,0.12731]
[1763392130583,0.01942218,94665.0,94620.0,0.12731]
[1763392130800,0.10416178,94664.0,94625.0,0.10416178]
[1763392131032,0.09006,94686.0,94625.0,0.10416178]
[1763392131247,0.09006,94686.0,94626.0,0.06732201]
[1763392131248,0.02640473,94680.0,94626.0,0.06732201]
[1763392131536,0.60404881,94700.0,94627.0,0.04341874]
[1763392131734,0.10416178,94683.0,94639.0,0.10416178]
[1763392131948,0.01394249,94682.0,94640.0,0.01147718]
[1763392132160,0.01394249,94682.0,94640.0,0.01253312]
[1763392132161,0.01572149,94681.0,94640.0,0.01253312]
[1763392132388,0.02640445,94681.0,94640.0,0.01253312]
[1763392132601,0.10416178,94680.0,94640.0,0.01041618]
[1763392132830,0.02640501,94679.0,94638.0,0.10416178]
[1763392133055,0.10416178,94665.0,94620.0,0.04158]
[1763392133266,0.01902299,94664.0,94638.0,0.00044028]
[1763392133484,0.01902299,94664.0,94639.0,0.08678716]
[1763392133712,0.04341874,94691.0,94639.0,0.08678716]
[1763392133713,0.04267675,94678.0,94664.0,0.02305]
[1763392133919,0.10416178,94677.0,94664.0,0.02305]
[1763392134142,0.09063,94698.0,94664.0,0.02305]
[1763392134143,0.01667447,94676.0,94664.0,0.02305]
[1763392134353,0.0205563,94730.0,94665.0,0.08573]
[1763392134354,0.01325192,94689.0,94665.0,0.08573]
[1763392134559,0.01635783,94690.0,94665.0,0.08784354]
[1763392134767,0.01046398,94689.0,94665.0,0.08784354]
[1763392135012,0.02639999,94697.0,94666.0,0.10416178]
[1763392135218,0.01186987,94696.0,94667.0,0.00211349]
[1763392135424,0.01287824,94696.0,94667.0,0.08695349]
[1763392135635,0.01618022,94698.0,94667.0,0.08695349]
[1763392135838,0.01486949,94695.0,94667.0,0.08695349]
[1763392136048,0.10416178,94684.0,94667.0,0.08695349]
[1763392136274,0.01396424,94683.0,94667.0,0.08695349]
[1763392136478,0.02640389,94683.0,94667.0,0.00044028]
[1763392136704,0.01801467,94682.0,94667.0,0.00044028]
[1763392136912,0.02640417,94682.0,94667.0,0.00044028]
[1763392137551,0.10416178,94681.0,94667.0,0.00044028]
[1763392137757,0.01041618,94680.0,94667.0,0.00044028]
[1763392137976,0.02640501,94679.0,94667.0,0.00044028]
[1763392138190,0.01950136,94678.0,94667.0,0.00044028]
[1763392138396,0.04590692,94677.0,94667.0,0.00144028]
[1763392138602,0.01950136,94676.0,94667.0,0.00044028]
[1763392138824,0.03658165,94676.0,94667.0,0.00044028]
[1763392139029,0.01950136,94675.0,94667.0,0.00144028]
[1763392139235,0.01530429,94674.0,94667.0,0.00044028]
[1763392139444,0.04590804,94673.0,94644.0,0.06328028]
[1763392139663,0.65501637,94660.0,94620.0,0.69659637]
[1763392139868,0.65501637,94640.0,94620.0,0.04158]
[1763392140126,0.02641617,94639.0,94620.0,0.04158]
[1763392140312,0.13057795,94639.0,94625.0,0.00211175]
[1763392140542,0.13057795,94639.0,94570.0,0.00999999]
[1763392140543,0.01961672,94638.0,94570.0,0.65501637]
[1763392140761,0.65501637,94621.0,94570.0,0.65501637]
[1763392140981,0.02642147,94620.0,94560.0,0.04391]
[1763392141214,0.02642147,94620.0,94538.0,0.03835]
[1763392141215,0.04341874,94600.0,94538.0,0.03835]
[1763392141424,0.04341874,94600.0,94530.0,0.0004]
[1763392141425,3.0,94585.0,94530.0,0.0004]
[1763392141649,0.04605359,94584.0,94549.0,0.08484]
[1763392141881,0.67241884,94600.0,94549.0,0.08484]
[1763392141882,0.01962206,94583.0,94549.0,0.08484]
[1763392142106,0.01962206,94582.0,94551.0,0.323]
[1763392142324,0.01962206,94581.0,94550.0,0.04391]
[1763392142537,0.01962206,94580.0,94551.0,0.09781375]
[1763392142785,0.01967459,94579.0,94551.0,0.09781375]
[1763392143001,0.01967459,94578.0,94559.0,0.10416178]
[1763392143232,0.0160546,94618.0,94559.0,0.10416178]
[1763392143448,0.09765409,94642.0,94560.0,0.09525618]
[1763392143449,0.10416178,94616.0,94560.0,0.09525618]
[1763392143659,0.10416178,94616.0,94574.0,0.10416178]
[1763392143877,0.67241884,94620.0,94575.0,0.00105551]
[1763392144113,0.67241884,94620.0,94560.0,0.09525618]
[1763392144114,0.67241884,94600.0,94560.0,0.09525618]
[1763392144331,3.02642734,94599.0,94560.0,0.08484]
[1763392144550,3.0,94599.0,94560.0,0.08484]
[1763392144760,0.67241884,94580.0,94560.0,0.08484]
[1763392144970,3.0,94613.0,94561.0,0.10416178]
[1763392145188,0.03790939,94637.0,94576.0,0.10416178]
[1763392145417,0.09765409,94642.0,94577.0,0.01041618]
[1763392145418,3.0,94635.0,94577.0,0.01041618]
[1763392145626,0.03714684,94638.0,94578.0,0.00105732]
[1763392145627,0.67241884,94620.0,94578.0,0.00105732]
[1763392145838,0.01717649,94619.0,94578.0,0.00105732]
[1763392146058,0.10416178,94616.0,94579.0,0.08484]
[1763392146270,0.001,94613.0,94579.0,0.08484]
[1763392146537,0.10416178,94599.0,94562.0,0.08484]
[1763392146810,0.02642762,94598.0,94562.0,0.06084]
[1763392147029,0.02642762,94598.0,94550.0,0.04391]
[1763392147030,3.0,94597.0,94550.0,0.04391]
[1763392147238,0.10416178,94579.0,94550.0,0.04391]
[1763392147671,0.0264332,94578.0,94550.0,0.04391]
[1763392147890,0.0154243,94595.0,94551.0,0.00105577]
[1763392148115,0.13059051,94594.0,94560.0,0.10416178]
[1763392148335,0.01187174,94593.0,94561.0,0.01151615]
[1763392148562,0.10416178,94593.0,94561.0,0.01151615]
[1763392148786,0.67241884,94590.0,94553.0,0.08484]
[1763392149008,0.67241884,94590.0,94550.0,0.04391]
[1763392149009,3.0,94589.0,94550.0,0.04391]
[1763392149235,3.0,94564.0,94530.0,0.0004]
[1763392149498,3.0,94562.0,94530.0,0.0004]
[1763392149716,3.0,94560.0,94530.0,0.0004]
[1763392149931,3.0,94564.0,94530.0,0.0004]
[1763392150148,0.01369542,94563.0,94532.0,0.00106493]
[1763392150397,0.10416178,94565.0,94532.0,0.00106493]
[1763392150643,0.10416178,94565.0,94530.0,0.0004]
[1763392150875,0.10416178,94565.0,94532.0,0.01176116]
[1763392150876,3.0,94563.0,94532.0,0.01176116]
[1763392151111,3.0,94561.0,94530.0,0.0004]
[1763392151361,3.03323842,94560.0,94530.0,0.0004]
[1763392151590,0.01,94550.0,94530.0,0.0004]
[1763392151806,0.2549515,94548.0,94530.0,0.0004]
[1763392152051,3.37641874,94545.0,94530.0,0.0004]
[1763392152274,3.323,94545.0,94530.0,0.0004]
[1763392152493,3.58795821,94545.0,94544.0,0.00829941]
[1763392152704,3.58795821,94545.0,94530.0,0.0004]
[1763392152705,0.01,94532.0,94530.0,0.0004]
[1763392152931,3.40286481,94532.0,94531.0,0.08252]
[1763392153156,0.323,94528.0,94500.0,10.0666]
[1763392153391,0.323,94525.0,94500.0,10.0666]
[1763392153600,0.323,94519.0,94500.0,10.0666]
[1763392153812,0.323,94516.0,94500.0,10.0666]
[1763392154032,0.02645082,94515.0,94500.0,10.0406]
[1763392154258,0.01,94508.0,94500.0,10.0406]
[1763392154465,3.37641874,94501.0,94500.0,8.33470685]
[1763392154693,3.43349701,94501.0,94500.0,8.25303375]
[1763392154903,3.4339371,94501.0,94500.0,8.25303375]
[1763392155105,3.39647144,94501.0,94500.0,8.25303375]
[1763392155316,0.39647144,94501.0,94500.0,8.25303375]
[1763392155526,3.38647144,94501.0,94500.0,8.25303375]
[1763392155728,3.39647144,94501.0,94500.0,8.25303375]
[1763392156023,3.0200527,94501.0,94500.0,8.25303375]
[1763392156224,0.00044009,94501.0,94500.0,8.25303375]
[1763392156432,3.01996078,94501.0,94500.0,8.25303375]
[1763392156644,3.00044009,94501.0,94500.0,8.25303375]
[1763392157293,3.05385883,94501.0,94500.0,8.25303375]
[1763392157712,3.00144009,94501.0,94500.0,8.25303375]
[1763392157924,0.00044009,94501.0,94500.0,8.25303375]
[1763392158356,3.00144009,94501.0,94500.0,8.25303375]
[1763392158774,0.00044009,94501.0,94500.0,8.2542599]
[1763392158991,0.00999999,94570.0,94500.0,8.3483999]
[1763392159214,0.02644467,94537.0,94501.0,0.19780938]
[1763392159426,0.02726,94588.0,94502.0,0.09414]
[1763392159427,0.10416178,94549.0,94502.0,0.09414]
[1763392159644,0.67241884,94570.0,94536.0,0.04615]
[1763392159893,0.01687434,94555.0,94503.0,0.00105816]
[1763392160108,0.01495799,94554.0,94514.0,0.10416178]
[1763392160318,0.67241884,94560.0,94521.0,0.10416178]
[1763392160526,0.67241884,94560.0,94505.0,0.10416178]
[1763392160527,0.10416178,94549.0,94522.0,0.10416178]
[1763392160739,0.10416178,94549.0,94509.0,0.09414]
[1763392160988,0.67241884,94550.0,94509.0,0.09414]
[1763392160989,0.02644159,94548.0,94509.0,0.06027165]
[1763392161251,0.02644159,94548.0,94505.0,0.10416178]
[1763392161252,3.0,94545.0,94505.0,0.10416178]
[1763392161466,0.01044112,94544.0,94505.0,0.10416178]
[1763392161685,0.01796961,94544.0,94506.0,0.00212084]
[1763392161907,0.01796961,94544.0,94505.0,0.10416178]
[1763392161908,0.02644299,94543.0,94505.0,0.10416178]
[1763392162116,0.10416178,94534.0,94477.0,0.10416178]
[1763392162322,0.67241884,94520.0,94477.0,0.10416178]
[1763392162578,0.0264497,94519.0,94477.0,0.10416178]
[1763392162788,0.67241884,94530.0,94477.0,0.10416178]
[1763392163004,0.02644691,94529.0,94495.0,0.09414]
[1763392163217,0.10416178,94529.0,94501.0,0.09414]
[1763392163439,0.01778399,94528.0,94501.0,0.19830178]
[1763392163661,0.02033024,94528.0,94501.0,0.09414]
[1763392163892,3.0,94527.0,94489.0,0.09414]
[1763392164102,3.0,94525.0,94501.0,0.00105633]
[1763392164317,0.01617899,94524.0,94501.0,0.19935811]
[1763392164531,0.00013199,94529.0,94502.0,0.09256]
[1763392164734,0.10416178,94525.0,94500.0,8.25303375]
[1763392164949,3.0,94523.0,94500.0,8.25303375]
[1763392165167,0.67241884,94520.0,94500.0,8.25303375]
[1763392165379,0.0264497,94519.0,94500.0,8.25303375]
[1763392165593,3.0,94518.0,94500.0,8.25303375]
[1763392165812,0.02645026,94517.0,94500.0,8.25303375]
[1763392166103,3.0,94507.0,94500.0,8.25303375]
[1763392166425,3.0,94504.0,94500.0,8.25303375]
[1763392166587,0.02645418,94503.0,94500.0,8.25303375]
[1763392166811,3.0,94502.0,94500.0,8.25303375]
[1763392167029,0.67241884,94520.0,94500.0,8.25303375]
[1763392167256,0.21160662,94515.0,94500.0,8.25303375]
[1763392167464,3.10416178,94501.0,94500.0,8.25403375]
[1763392167718,3.13371237,94501.0,94500.0,8.25303375]
[1763392167940,3.23420938,94501.0,94500.0,8.23422535]
[1763392168150,3.23420938,94501.0,94500.0,8.20022535]
[1763392168370,3.20537827,94501.0,94500.0,8.20022535]
[1763392168588,3.21204174,94501.0,94500.0,8.20022535]
[1763392168806,3.12371237,94501.0,94500.0,8.20022535]
[1763392169278,3.13371237,94501.0,94500.0,8.20022535]
[1763392169536,3.12471237,94501.0,94500.0,8.20022535]
[1763392170033,3.17813111,94501.0,94500.0,8.20022535]
[1763392170244,3.38976908,94501.0,94500.0,8.20022535]
[1763392170457,3.38976908,94501.0,94500.0,8.2014515]
[1763392170896,3.21053286,94501.0,94500.0,8.2014515]
[1763392171452,3.21053286,94501.0,94500.0,8.19032513]
[1763392171453,3.20953286,94501.0,94500.0,8.19032513]
[1763392171696,3.20953286,94501.0,94500.0,6.83696608]
[1763392171914,3.25038713,94501.0,94500.0,5.93305236]
[1763392172119,3.25038713,94501.0,94500.0,0.48383296]
[1763392172120,2.40827072,94501.0,94500.0,0.48383296]
[1763392172343,3.21165812,94492.0,94414.0,0.09256]
[1763392172559,3.21165812,94492.0,94410.0,0.10416178]
[1763392172560,3.3170292,94492.0,94418.0,0.01164846]
[1763392172802,3.09537108,94492.0,94426.0,0.10416178]
[1763392173011,3.06195234,94492.0,94435.0,0.09256]
[1763392173230,3.06195234,94492.0,94400.0,0.01039999]
[1763392173231,0.01058313,94490.0,94400.0,0.01039999]
[1763392173459,0.01058313,94490.0,94419.0,0.04292]
[1763392173460,0.04084,94452.0,94419.0,0.04292]
[1763392173672,0.04084,94452.0,94421.0,0.09256]
[1763392173673,0.07685906,94452.0,94421.0,0.09256]
[1763392173886,0.07685906,94452.0,94419.0,0.04292]
[1763392173887,0.05039059,94452.0,94419.0,0.04292]
[1763392174111,3.07307056,94452.0,94411.0,0.002]
[1763392174325,0.05039059,94452.0,94420.0,0.04292]
[1763392174541,0.01955059,94452.0,94425.0,0.09256]
[1763392174771,0.00013182,94452.0,94426.0,0.01080821]
[1763392174988,0.00013182,94452.0,94425.0,0.09256]
[1763392175203,0.01975637,94452.0,94426.0,0.00807262]
[1763392175426,0.01975637,94452.0,94426.0,0.01182248]